bitfinex/quotes_BTCUSD_20241004
["timestamp","ask_amount","ask_price","bid_price","bid_amount"]
[1728043037406,0.01634037,61541.0,61540.0,0.45184556]
[1728043037620,0.01634037,61541.0,61540.0,0.54074556]
[1728043037856,0.01634037,61541.0,61540.0,0.55074556]
[1728043038092,0.01634037,61541.0,61540.0,0.52674556]
[1728043038523,0.000819,61541.0,61540.0,0.54074556]
[1728043038804,0.000819,61541.0,61540.0,0.52674556]
[1728043039064,0.000819,61541.0,61540.0,0.54074556]
[1728043039284,0.000819,61541.0,61540.0,0.54071097]
[1728043039530,0.01633739,61541.0,61540.0,0.54071097]
[1728043040092,0.000819,61541.0,61540.0,0.54071097]
[1728043040294,0.000819,61541.0,61540.0,0.55471097]
[1728043040759,0.000819,61541.0,61540.0,0.54071097]
[1728043040992,0.000819,61541.0,61540.0,0.55471097]
[1728043042818,0.000819,61541.0,61540.0,0.55468931]
[1728043043074,0.000819,61541.0,61540.0,0.5340527]
[1728043043316,0.000819,61541.0,61540.0,0.55468997]
[1728043043562,0.01605948,61541.0,61540.0,0.55468997]
[1728043044464,0.03158117,61541.0,61540.0,0.55468997]
[1728043045592,0.01605948,61541.0,61540.0,0.55468997]
[1728043046509,0.03158923,61541.0,61540.0,0.55468997]
[1728043046729,0.01605948,61541.0,61540.0,0.55468997]
[1728043048709,0.00053978,61541.0,61540.0,0.55468997]
[1728043049380,0.0160853,61541.0,61540.0,0.55468997]
[1728043050005,0.00053978,61541.0,61540.0,0.55468997]
[1728043050968,0.00053978,61541.0,61540.0,0.65668997]
[1728043051661,0.00053978,61541.0,61540.0,0.76504972]
[1728043051883,0.00053978,61541.0,61540.0,0.75101211]
[1728043052099,0.00053978,61541.0,61540.0,0.76501211]
[1728043052318,0.00053978,61541.0,61540.0,0.75101211]
[1728043052534,0.00053978,61541.0,61540.0,0.77532129]
[1728043052992,0.00053978,61541.0,61540.0,0.69223502]
[1728043053460,0.00053978,61541.0,61540.0,0.75468402]
[1728043053677,0.00053978,61541.0,61540.0,0.78945786]
[1728043053893,0.00053978,61541.0,61540.0,0.68337159]
[1728043054173,0.00053978,61541.0,61540.0,0.69737159]
[1728043054401,0.00053978,61541.0,61540.0,0.68337159]
[1728043054613,0.00053978,61541.0,61540.0,0.80458654]
[1728043054831,0.00053978,61541.0,61540.0,0.69737159]
[1728043055047,0.00053978,61541.0,61540.0,0.7803595]
[1728043055268,0.00053978,61541.0,61540.0,0.7943595]
[1728043055495,0.00053978,61541.0,61540.0,0.7803595]
[1728043055722,0.00053978,61541.0,61540.0,0.69737159]
[1728043056173,0.00053978,61541.0,61540.0,0.79436232]
[1728043056387,0.00053978,61541.0,61540.0,0.68337159]
[1728043056635,0.00053978,61541.0,61540.0,0.81858654]
[1728043056848,0.00053978,61541.0,61540.0,0.69737159]
[1728043057068,0.00053978,61541.0,61540.0,0.6410527]
[1728043057287,0.00053978,61541.0,61540.0,0.66180758]
[1728043057503,0.00053978,61541.0,61540.0,0.69753664]
[1728043057735,0.00053978,61541.0,61540.0,0.81875159]
[1728043058202,0.00053978,61541.0,61540.0,0.69753664]
[1728043059089,0.00053978,61541.0,61540.0,0.79451938]
[1728043059593,0.00053978,61541.0,61540.0,0.79452761]
[1728043059803,0.00053978,61541.0,61540.0,0.79616561]
[1728043060505,0.00053978,61541.0,61540.0,0.82038959]
[1728043060736,0.00053978,61541.0,61540.0,0.66344558]
[1728043060966,0.00053978,61541.0,61540.0,0.82040913]
[1728043061183,0.00053978,61541.0,61540.0,0.69919418]
[1728043061648,0.00053978,61541.0,61540.0,0.82040913]
[1728043063305,0.00053978,61541.0,61540.0,0.69919418]
[1728043064479,0.00053978,61541.0,61540.0,0.69918091]
[1728043064727,0.00053978,61541.0,61540.0,0.66343231]
[1728043064962,0.00053978,61541.0,61540.0,0.69910987]
[1728043066358,0.00053978,61541.0,61540.0,0.66343231]
[1728043066594,0.00053978,61541.0,61540.0,0.69913909]
[1728043067578,0.00053978,61541.0,61540.0,0.82309478]
[1728043068017,0.00053978,61541.0,61540.0,0.76664639]
[1728043068261,0.00053978,61541.0,61540.0,0.96860639]
[1728043068509,0.00053978,61541.0,61540.0,0.96879843]
[1728043068723,0.00053978,61541.0,61540.0,0.82314845]
[1728043069166,0.00053978,61541.0,61540.0,0.96880108]
[1728043069666,0.00053978,61541.0,61540.0,0.88806417]
[1728043069897,0.00053978,61541.0,61540.0,1.0337168]
[1728043070552,0.00053978,61541.0,61540.0,0.88806417]
[1728043071703,0.00053978,61541.0,61540.0,0.92135091]
[1728043071914,0.00053978,61541.0,61540.0,0.98048475]
[1728043072152,0.00053978,61541.0,61540.0,0.94669982]
[1728043072414,0.00053978,61541.0,61540.0,0.8781876]
[1728043073100,0.00053978,61541.0,61540.0,0.90353651]
[1728043073349,0.00053978,61541.0,61540.0,0.75782841]
[1728043073576,0.00053978,61541.0,61540.0,0.90355771]
[1728043073805,0.00053978,61541.0,61540.0,0.8782088]
[1728043074263,0.00053978,61541.0,61540.0,0.90355771]
[1728043074489,0.00053978,61541.0,61540.0,0.75782841]
[1728043074738,0.00053978,61541.0,61540.0,0.7324795]
[1728043075007,0.00053978,61541.0,61540.0,0.9035835]
[1728043075247,0.00053978,61541.0,61540.0,0.67846691]
[1728043075484,0.00053978,61541.0,61540.0,0.94679383]
[1728043075718,0.00053978,61541.0,61540.0,1.09256483]
[1728043076400,0.00053978,61541.0,61540.0,1.06723849]
[1728043076635,0.00053978,61541.0,61540.0,1.09259598]
[1728043076867,0.00053978,61541.0,61540.0,1.06723849]
[1728043077106,0.00053978,61541.0,61540.0,0.92143634]
[1728043077338,0.00053978,61541.0,61540.0,0.94679383]
[1728043077575,0.00053978,61541.0,61540.0,0.92143634]
[1728043077806,0.00053978,61541.0,61540.0,0.94681308]
[1728043078035,0.00053978,61541.0,61540.0,1.06728167]
[1728043078273,0.00053978,61541.0,61540.0,0.67854836]
[1728043078521,0.00053978,61541.0,61540.0,0.94691274]
[1728043078754,0.00053978,61541.0,61540.0,0.92153513]
[1728043078997,0.00053978,61541.0,61540.0,0.98853677]
[1728043079228,0.00053978,61541.0,61540.0,0.99761296]
[1728043079464,0.00053978,61541.0,61540.0,0.97223048]
[1728043080696,0.02546795,61559.0,61558.0,0.338348]
[1728043080932,0.02546795,61559.0,61558.0,0.62721941]
[1728043081160,0.24343338,61561.0,61560.0,0.267443]
[1728043081404,0.24343338,61571.0,61570.0,0.162416]
[1728043081652,0.25865276,61571.0,61570.0,0.25815052]
[1728043081878,0.25865276,61571.0,61570.0,0.31217541]
[1728043082109,0.01521938,61571.0,61570.0,0.4267621]
[1728043082364,0.01521938,61571.0,61570.0,0.43372683]
[1728043082837,0.01521938,61571.0,61570.0,0.45707439]
[1728043083298,0.01521938,61571.0,61570.0,0.48139054]
[1728043083538,0.1719,61575.0,61574.0,0.162406]
[1728043083804,0.1719,61575.0,61574.0,0.34628445]
[1728043084050,0.18709051,61575.0,61574.0,0.35169402]
[1728043084287,0.18709051,61575.0,61574.0,0.38480239]
[1728043084524,0.18709064,61575.0,61574.0,0.35169402]
[1728043085236,0.1719,61575.0,61574.0,0.38490945]
[1728043085498,0.1719,61575.0,61574.0,0.35169402]
[1728043085499,0.1870576,61575.0,61574.0,0.35169402]
[1728043085729,0.1870576,61575.0,61574.0,0.36569402]
[1728043086203,0.1870576,61575.0,61574.0,0.36997417]
[1728043086441,0.1870576,61575.0,61574.0,0.37930063]
[1728043087187,0.1870576,61575.0,61574.0,0.37936608]
[1728043088683,0.1719,61575.0,61574.0,0.37936608]
[1728043090314,0.1719,61575.0,61574.0,0.35860859]
[1728043090579,0.1719,61575.0,61574.0,0.37933071]
[1728043091292,0.1719,61575.0,61574.0,0.19114173]
[1728043091293,0.18704446,61575.0,61574.0,0.19114173]
[1728043091534,0.21127688,61575.0,61574.0,0.19114173]
[1728043091983,0.21127688,61575.0,61574.0,0.17714173]
[1728043092684,0.21127688,61575.0,61574.0,0.18514173]
[1728043096234,0.25066995,61575.0,61574.0,0.19114173]
[1728043097147,0.25148895,61575.0,61574.0,0.19114173]
[1728043098771,0.21210347,61575.0,61574.0,0.19114173]
[1728043099503,0.33601687,61575.0,61574.0,0.02873573]
[1728043099725,0.49841987,61575.0,61574.0,0.02873573]
[1728043099946,0.33601687,61575.0,61574.0,0.02873573]
[1728043100456,0.31178653,61575.0,61574.0,0.02873573]
[1728043100679,0.33603314,61575.0,61574.0,0.02873573]
[1728043100940,0.04021974,61575.0,61574.0,0.49901373]
[1728043101179,0.01597313,61575.0,61574.0,0.49901373]
[1728043101418,0.000819,61575.0,61574.0,0.49901373]
[1728043101914,0.000819,61575.0,61574.0,0.48925501]
[1728043102174,0.000819,61575.0,61574.0,0.61137782]
[1728043102408,0.000819,61575.0,61574.0,0.61137712]
[1728043103331,0.000819,61575.0,61574.0,0.62537712]
[1728043103559,0.000819,61575.0,61574.0,0.62531269]
[1728043103779,0.000819,61575.0,61574.0,0.67610165]
[1728043104031,0.000819,61575.0,61574.0,0.69010236]
[1728043104474,0.000819,61575.0,61574.0,0.67610236]
[1728043104739,0.000819,61575.0,61574.0,0.4874]
[1728043104962,0.000819,61575.0,61574.0,0.47503061]
[1728043105191,0.0159877,61575.0,61574.0,0.37503061]
[1728043105420,0.04024629,61575.0,61574.0,0.19114173]
[1728043105644,0.06570584,61575.0,61574.0,0.19114173]
[1728043105872,0.06570584,61575.0,61574.0,0.02873573]
[1728043106328,0.06570584,61575.0,61574.0,0.01473573]
[1728043106571,0.08191549,61575.0,61574.0,0.02873573]
[1728043106791,0.02627855,61575.0,61574.0,0.19114173]
[1728043107014,0.06570148,61575.0,61574.0,0.17714173]
[1728043107237,0.06570148,61575.0,61574.0,0.02373573]
[1728043107523,0.08192366,61575.0,61574.0,0.02373573]
[1728043108236,0.08192366,61575.0,61574.0,0.18614173]
[1728043108456,0.08192366,61575.0,61574.0,0.02373573]
[1728043108696,0.06570148,61575.0,61574.0,0.02373573]
[1728043108934,0.08193259,61575.0,61574.0,0.18614173]
[1728043109388,0.06570148,61575.0,61574.0,0.18614173]
[1728043109857,0.36570148,61575.0,61574.0,0.18614173]
[1728043110081,0.32627855,61575.0,61574.0,0.18614173]
[1728043110307,0.36573072,61575.0,61574.0,0.18614173]
[1728043110545,0.36573072,61575.0,61574.0,0.17714173]
[1728043110804,0.36573072,61575.0,61574.0,0.18914173]
[1728043111464,0.34027117,61575.0,61574.0,0.18914173]
[1728043112190,0.34027117,61575.0,61574.0,0.20114173]
[1728043113119,0.34027117,61575.0,61574.0,0.03873573]
[1728043114508,0.34027117,61575.0,61574.0,0.20114173]
[1728043114509,0.35650662,61575.0,61574.0,0.20114173]
[1728043114759,0.38196802,61575.0,61574.0,0.20114173]
[1728043115666,0.36573257,61575.0,61574.0,0.20114173]
[1728043117062,0.38196802,61575.0,61574.0,0.20114173]
[1728043117745,0.36573257,61575.0,61574.0,0.20114173]
[1728043118206,0.38196802,61575.0,61574.0,0.20114173]
[1728043118423,0.38196802,61575.0,61574.0,0.03873573]
[1728043118676,0.36573257,61575.0,61574.0,0.03873573]
[1728043119885,0.34251718,61575.0,61574.0,0.20114173]
[1728043120126,0.39818873,61575.0,61574.0,0.20114173]
[1728043120359,0.38195195,61575.0,61574.0,0.20114173]
[1728043120593,0.39818873,61575.0,61574.0,0.20114173]
[1728043121810,0.38195195,61575.0,61574.0,0.20114173]
[1728043122044,0.38195195,61575.0,61574.0,0.03873573]
[1728043122740,0.54435495,61575.0,61574.0,0.03873573]
[1728043122963,0.38195195,61575.0,61574.0,0.20114173]
[1728043123447,0.35649055,61575.0,61574.0,0.20114173]
[1728043123915,0.37272914,61575.0,61574.0,0.20114173]
[1728043124591,0.35649055,61575.0,61574.0,0.20114173]
[1728043125090,0.37272914,61575.0,61574.0,0.20114173]
[1728043125783,0.35649055,61575.0,61574.0,0.20114173]
[1728043126514,0.35649243,61575.0,61574.0,0.20114173]
[1728043126749,0.38195255,61575.0,61574.0,0.20114173]
[1728043129042,0.36571577,61575.0,61574.0,0.20114173]
[1728043130170,0.38195342,61575.0,61574.0,0.20114173]
[1728043130636,0.36571577,61575.0,61574.0,0.20114173]
[1728043131296,0.34025565,61575.0,61574.0,0.20114173]
[1728043131509,0.3564933,61575.0,61574.0,0.20114173]
[1728043131938,0.34025565,61575.0,61574.0,0.20114173]
[1728043132796,0.35650243,61575.0,61574.0,0.20114173]
[1728043133043,0.33223372,61575.0,61574.0,0.20114173]
[1728043133267,0.463222,61575.0,61574.0,0.03873573]
[1728043133497,0.51891634,61575.0,61574.0,0.03873573]
[1728043133719,0.74014649,61575.0,61574.0,0.024]
[1728043133936,0.75531903,61575.0,61574.0,0.024]
[1728043134201,0.7795951,61575.0,61574.0,0.024]
[1728043134644,0.80505631,61575.0,61574.0,0.024]
[1728043135301,0.80505631,61575.0,61574.0,0.03869224]
[1728043137718,0.80505631,61575.0,61574.0,0.024]
[1728043137945,0.80505631,61575.0,61574.0,0.03869224]
[1728043138862,0.51872316,61575.0,61574.0,0.03869224]
[1728043139122,0.36572882,61575.0,61574.0,0.20109824]
[1728043139588,0.32628021,61575.0,61574.0,0.20109824]
[1728043139813,0.3657733,61575.0,61574.0,0.03869224]
[1728043140032,0.3657733,61575.0,61574.0,0.20109824]
[1728043140550,0.3657733,61575.0,61574.0,0.03869224]
[1728043140794,0.5281763,61575.0,61574.0,0.03869224]
[1728043141283,1.03360026,61575.0,61574.0,0.03869224]
[1728043141491,0.7061763,61575.0,61574.0,0.03869224]
[1728043141756,0.7061763,61575.0,61574.0,0.024]
[1728043141970,0.68071509,61575.0,61574.0,0.024]
[1728043142195,0.641222,61575.0,61574.0,0.024]
[1728043142412,0.68070227,61575.0,61574.0,0.024]
[1728043143636,0.86957451,61575.0,61574.0,0.024]
[1728043145215,0.89500846,61575.0,61574.0,0.024]
[1728043154971,0.85555751,61575.0,61574.0,0.024]
[1728043155432,0.89499207,61575.0,61574.0,0.024]
[1728043161826,0.85555751,61575.0,61574.0,0.024]
[1728043162329,0.8950179,61575.0,61574.0,0.024]
[1728043162563,0.93447961,61575.0,61574.0,0.024]
[1728043163726,0.86954547,61575.0,61574.0,0.024]
[1728043169320,0.83008508,61575.0,61574.0,0.024]
[1728043175021,0.52814698,61575.0,61574.0,0.024]
[1728043175277,0.48868527,61575.0,61574.0,0.024]
[1728043175494,0.48868527,61575.0,61574.0,0.02939436]
[1728043175710,0.52819394,61575.0,61574.0,0.02939436]
[1728043182135,0.48868527,61575.0,61574.0,0.02939436]
[1728043182363,0.5281617,61575.0,61574.0,0.02939436]
[1728043185689,0.48868527,61575.0,61574.0,0.02939436]
[1728043185910,0.52815788,61575.0,61574.0,0.02939436]
[1728043187061,0.53629677,61575.0,61574.0,0.02939436]
[1728043191339,0.37389377,61575.0,61574.0,0.02939436]
[1728043192446,0.37389377,61575.0,61574.0,0.19180036]
[1728043192932,0.300819,61575.0,61574.0,0.19180036]
[1728043193653,0.34930504,61575.0,61574.0,0.19180036]
[1728043195872,0.34930504,61575.0,61574.0,0.02939436]
[1728043196094,0.53716935,61575.0,61574.0,0.02939436]
[1728043196959,0.53716935,61575.0,61574.0,0.024]
[1728043197210,0.51170804,61575.0,61574.0,0.024]
[1728043197883,0.51170804,61575.0,61574.0,0.02939204]
[1728043199325,0.51170804,61575.0,61574.0,0.024]
[1728043199800,0.51170804,61575.0,61574.0,0.02938947]
[1728043200042,0.463222,61575.0,61574.0,0.02938947]
[1728043200283,0.463222,61575.0,61574.0,0.02870947]
[1728043200525,0.63634512,61575.0,61574.0,0.02870947]
[1728043201267,0.61088284,61575.0,61574.0,0.02870947]
[1728043201731,0.51168284,61575.0,61574.0,0.02870947]
[1728043202525,0.463222,61575.0,61574.0,0.02870947]
[1728043202769,0.300819,61575.0,61574.0,0.02870947]
[1728043203013,0.34928228,61575.0,61574.0,0.02870947]
[1728043203262,0.560149,61575.0,61574.0,0.02870947]
[1728043203538,0.397746,61575.0,61574.0,0.02870947]
[1728043204715,0.560149,61575.0,61574.0,0.02870947]
[1728043207299,0.71123008,61575.0,61574.0,0.02870947]
[1728043207763,0.652949,61575.0,61574.0,0.02870947]
[1728043208245,0.397746,61575.0,61574.0,0.02870947]
[1728043208471,0.560149,61575.0,61574.0,0.02870947]
[1728043208983,0.560149,61575.0,61574.0,0.37528327]
[1728043208984,0.397746,61575.0,61574.0,0.37528327]
[1728043209199,0.397746,61575.0,61574.0,0.35430218]
[1728043209430,0.36471651,61575.0,61574.0,0.37528237]
[1728043209670,0.38941129,61575.0,61574.0,0.37528237]
[1728043209906,0.38941052,61575.0,61574.0,0.37528237]
[1728043210132,0.34908633,61575.0,61574.0,0.37528237]
[1728043210359,0.36534707,61575.0,61574.0,0.37528237]
[1728043210599,0.34908633,61575.0,61574.0,0.37528237]
[1728043211499,0.36534497,61575.0,61574.0,0.37528237]
[1728043211959,0.3653448,61575.0,61574.0,0.37528237]
[1728043212205,0.3653448,61575.0,61574.0,0.37948995]
[1728043212434,0.34908633,61575.0,61574.0,0.37948995]
[1728043212672,0.300819,61575.0,61574.0,0.35850976]
[1728043212913,0.300819,61575.0,61574.0,0.37949729]
[1728043213138,0.34868895,61575.0,61574.0,0.37949729]
[1728043213603,0.36494645,61575.0,61574.0,0.37949729]
[1728043213880,0.36494645,61575.0,61574.0,0.46181845]
[1728043214114,0.34868997,61575.0,61574.0,0.46181845]
[1728043214344,0.34868997,61575.0,61574.0,0.46177526]
[1728043215749,0.34868997,61575.0,61574.0,0.47151187]
[1728043217132,0.34868997,61575.0,61574.0,0.64681187]
[1728043217388,0.34868942,61575.0,61574.0,0.59811274]
[1728043217599,0.34868942,61575.0,61574.0,0.5980878]
[1728043217861,0.34868942,61575.0,61574.0,0.5645339]
[1728043219251,0.34055181,61575.0,61574.0,0.5645339]
[1728043219705,0.34055181,61575.0,61574.0,0.54354637]
[1728043219950,0.34055181,61575.0,61574.0,0.56451289]
[1728043219951,0.34053695,61575.0,61574.0,0.56451289]
[1728043220185,0.34051318,61575.0,61574.0,0.56451289]
[1728043223146,0.34051318,61575.0,61574.0,0.56533189]
[1728043223597,0.300819,61575.0,61574.0,0.56531559]
[1728043224058,0.3405105,61575.0,61574.0,0.56531559]
[1728043226096,0.3396915,61575.0,61574.0,0.56531559]
[1728043226319,0.32426381,61575.0,61574.0,0.56531559]
[1728043227007,0.32426381,61575.0,61574.0,0.47221559]
[1728043228545,0.33240151,61575.0,61574.0,0.47221559]
[1728043230178,0.33240151,61575.0,61574.0,0.45126537]
[1728043230179,0.28457231,61575.0,61574.0,0.45126537]
[1728043230400,0.29985168,61575.0,61574.0,0.47218503]
[1728043230620,0.33243638,61575.0,61574.0,0.47218503]
[1728043234114,0.28457231,61575.0,61574.0,0.4721918]
[1728043234344,0.33408948,61575.0,61574.0,0.4721918]
[1728043234815,0.33408948,61575.0,61574.0,0.36906537]
[1728043235050,0.28621031,61575.0,61574.0,0.38999072]
[1728043235272,0.33410142,61575.0,61574.0,0.38999072]
[1728043237291,0.33410142,61575.0,61574.0,0.42320461]
[1728043237519,0.33410142,61575.0,61574.0,0.42303901]
[1728043237749,0.33426012,61575.0,61574.0,0.42303901]
[1728043241062,0.33426012,61575.0,61574.0,0.40227992]
[1728043241309,0.30156108,61575.0,61574.0,0.44502215]
[1728043241526,0.33428252,61575.0,61574.0,0.48661205]
[1728043241763,0.33428252,61575.0,61574.0,0.44502215]
[1728043243374,0.33428252,61575.0,61574.0,0.48658528]
[1728043243378,0.32614482,61575.0,61574.0,0.76338528]
[1728043243595,0.30156974,61575.0,61574.0,0.79077766]
[1728043243835,0.30156974,61575.0,61574.0,0.76538528]
[1728043244053,0.30156974,61575.0,61574.0,0.75338528]
[1728043244273,0.28621031,61575.0,61574.0,0.76538528]
[1728043244506,0.28621031,61575.0,61574.0,0.75838528]
[1728043244791,0.28621031,61575.0,61574.0,0.81744415]
[1728043244993,0.28621031,61575.0,61574.0,0.83144415]
[1728043245230,0.28621031,61575.0,61574.0,0.75828013]
[1728043245472,0.28621031,61575.0,61574.0,0.76096013]
[1728043245922,0.28621031,61575.0,61574.0,0.77296013]
[1728043246364,0.28621031,61575.0,61574.0,0.76096013]
[1728043246582,0.28621031,61575.0,61574.0,0.77496013]
[1728043246822,0.28621031,61575.0,61574.0,0.76096013]
[1728043247068,0.28621031,61575.0,61574.0,0.90323431]
[1728043247557,0.28621031,61575.0,61574.0,0.20512226]
[1728043247560,0.28621031,61575.0,61574.0,0.36333485]
[1728043247816,0.28621031,61575.0,61574.0,0.23212135]
[1728043248057,0.33418798,61575.0,61574.0,0.21812135]
[1728043248337,0.33418798,61575.0,61574.0,0.22796693]
[1728043248573,0.33417402,61575.0,61574.0,0.22796693]
[1728043248814,0.35963318,61575.0,61574.0,0.19996693]
[1728043249053,0.33417402,61575.0,61574.0,0.21396693]
[1728043249527,0.33417402,61575.0,61574.0,0.19996693]
[1728043249752,0.33417402,61575.0,61574.0,0.21296693]
[1728043250237,0.33417402,61575.0,61574.0,0.22596693]
[1728043250468,0.35963318,61575.0,61574.0,0.22596693]
[1728043251638,0.35963318,61575.0,61574.0,0.20513179]
[1728043251861,0.3596214,61575.0,61574.0,0.22597008]
[1728043252097,0.3596214,61575.0,61574.0,0.22596971]
[1728043252322,0.3596214,61575.0,61574.0,0.20513179]
[1728043252583,0.3596214,61575.0,61574.0,0.22596928]
[1728043252821,0.3596214,61575.0,61574.0,0.20513179]
[1728043253758,0.5220244,61575.0,61574.0,0.20513179]
[1728043255199,0.49656524,61575.0,61574.0,0.20513179]
[1728043255903,0.44861331,61575.0,61574.0,0.20513179]
[1728043256332,0.49653912,61575.0,61574.0,0.20513179]
[1728043257436,0.62047722,61575.0,61574.0,0.04194508]
[1728043257705,0.89828285,61575.0,61574.0,0.04194508]
[1728043257950,0.79237722,61575.0,61574.0,0.026819]
[1728043258188,0.81783973,61575.0,61574.0,0.026819]
[1728043258701,0.81783973,61575.0,61574.0,0.013819]
[1728043258948,0.76991392,61575.0,61574.0,0.022819]
[1728043259182,0.81790825,61575.0,61574.0,0.022819]
[1728043259409,0.81790825,61575.0,61574.0,0.000819]
[1728043259628,0.69397015,61575.0,61574.0,0.000819]
[1728043259855,0.69397015,61575.0,61574.0,0.005819]
[1728043260076,0.69397015,61575.0,61574.0,0.000819]
[1728043260327,0.69397015,61575.0,61574.0,0.008819]
[1728043260541,0.69397015,61575.0,61574.0,0.004819]
[1728043260977,0.69397015,61575.0,61574.0,0.009819]
[1728043261413,0.66850764,61575.0,61574.0,0.009819]
[1728043261630,0.66850764,61575.0,61574.0,0.005819]
[1728043262062,0.66850764,61575.0,61574.0,0.010819]
[1728043263278,0.66850764,61575.0,61574.0,0.000819]
[1728043263492,0.66850764,61575.0,61574.0,0.003819]
[1728043264395,0.6939715,61575.0,61574.0,0.003819]
[1728043264804,0.6939715,61575.0,61574.0,0.001819]
[1728043265244,0.64597717,61575.0,61574.0,0.003819]
[1728043265529,0.69396571,61575.0,61574.0,0.003819]
[1728043267896,0.66850185,61575.0,61574.0,0.003819]
[1728043268126,0.66849825,61575.0,61574.0,0.003819]
[1728043271037,0.66849005,61575.0,61574.0,0.003819]
[1728043271237,0.69395376,61575.0,61574.0,0.003819]
[1728043273288,0.66849005,61575.0,61574.0,0.002819]
[1728043273735,0.66949005,61575.0,61574.0,0.002819]
[1728043274020,0.66849005,61575.0,61574.0,0.002819]
[1728043274280,0.66949005,61575.0,61574.0,0.002819]
[1728043274562,0.85830554,61575.0,61574.0,0.002819]
[1728043274768,0.85830554,61575.0,61574.0,0.000819]
[1728043275743,0.96030554,61575.0,61574.0,0.000819]
[1728043275972,0.95830554,61575.0,61574.0,0.000819]
[1728043276203,0.98377222,61575.0,61574.0,0.000819]
[1728043277584,0.93579548,61575.0,61574.0,0.000819]
[1728043278033,0.98384973,61575.0,61574.0,0.000819]
[1728043281507,0.98334973,61575.0,61574.0,0.000819]
[1728043281721,0.91849235,61575.0,61574.0,0.000819]
[1728043284180,0.91849909,61575.0,61574.0,0.000819]
[1728043285379,0.79454098,61575.0,61574.0,0.000819]
[1728043285625,0.6887743,61575.0,61574.0,0.000819]
[1728043285877,0.4263713,61575.0,61574.0,0.000819]
[1728043286109,0.3347713,61575.0,61574.0,0.000819]
[1728043286580,0.3337713,61575.0,61574.0,0.000819]
[1728043286794,0.4961743,61575.0,61574.0,0.01708593]
[1728043287031,0.4961743,61575.0,61574.0,0.000819]
[1728043287273,0.4961743,61575.0,61574.0,0.01608593]
[1728043287529,0.4961743,61575.0,61574.0,0.003819]
[1728043287744,0.33374748,61575.0,61574.0,0.00934932]
[1728043287963,0.33374748,61575.0,61574.0,0.003819]
[1728043288204,0.49615048,61575.0,61574.0,0.00934932]
[1728043288452,0.33374748,61575.0,61574.0,0.17475532]
[1728043288695,0.3592096,61575.0,61574.0,0.17475532]
[1728043291449,0.32560832,61575.0,61574.0,0.35852011]
[1728043291912,0.33374604,61575.0,61574.0,0.35552011]
[1728043292374,0.32560832,61575.0,61574.0,0.35552011]
[1728043293323,0.32560832,61575.0,61574.0,0.33194203]
[1728043293766,0.32560832,61575.0,61574.0,0.34194203]
[1728043294218,0.28571031,61575.0,61574.0,0.34194203]
[1728043294436,0.30103507,61575.0,61574.0,0.34194203]
[1728043294674,0.32555469,61575.0,61574.0,0.33194203]
[1728043294924,0.32555469,61575.0,61574.0,0.34194203]
[1728043295158,0.32555469,61575.0,61574.0,0.33694203]
[1728043295399,0.32555469,61575.0,61574.0,0.34294203]
[1728043295862,0.32555469,61575.0,61574.0,0.35694203]
[1728043296781,0.32555469,61575.0,61574.0,0.34594203]
[1728043297496,0.32555469,61575.0,61574.0,0.35994203]
[1728043297711,0.325512,61575.0,61574.0,0.35994203]
[1728043299329,0.30101865,61575.0,61574.0,0.35994203]
[1728043299807,0.30101865,61575.0,61574.0,0.36647306]
[1728043300032,0.30101865,61575.0,61574.0,0.34594203]
[1728043300485,0.30101865,61575.0,61574.0,0.35994203]
[1728043303486,0.30101865,61575.0,61574.0,0.45434203]
[1728043304409,0.28571031,61575.0,61574.0,0.45434203]
[1728043304693,0.30102547,61575.0,61574.0,0.45434203]
[1728043305159,0.31634063,61575.0,61574.0,0.45434203]
[1728043305628,0.33165578,61575.0,61574.0,0.47481955]
[1728043306060,0.31634063,61575.0,61574.0,0.47481955]
[1728043306310,0.31634063,61575.0,61574.0,0.56081955]
[1728043306595,0.31634063,61575.0,61574.0,0.76359493]
[1728043306869,0.31634063,61575.0,61574.0,0.67676375]
[1728043307540,0.31634063,61575.0,61574.0,0.78759334]
[1728043307765,0.31634063,61575.0,61574.0,0.75959334]
[1728043308018,0.31634063,61575.0,61574.0,0.77359334]
[1728043308503,0.31634063,61575.0,61574.0,0.6765922]
[1728043308712,0.31634063,61575.0,61574.0,0.78759334]
[1728043308924,0.31634063,61575.0,61574.0,0.6905922]
[1728043309377,0.31634063,61575.0,61574.0,0.76330884]
[1728043309516,0.31634063,61575.0,61574.0,0.88713301]
[1728043309747,0.31634063,61575.0,61574.0,0.81641637]
[1728043309982,0.31634063,61575.0,61574.0,0.88913261]
[1728043310205,0.28571031,61575.0,61574.0,0.88913261]
[1728043310455,0.28571031,61575.0,61574.0,0.80241637]
[1728043310867,0.28571031,61575.0,61574.0,0.87513261]
[1728043311074,0.28571031,61575.0,61574.0,0.87504039]
[1728043311276,0.28571031,61575.0,61574.0,0.81632415]
[1728043312366,0.28571031,61575.0,61574.0,0.86477662]
[1728043314367,0.28571031,61575.0,61574.0,0.81181867]
[1728043314584,0.28571031,61575.0,61574.0,0.86480482]
[1728043316258,0.28571031,61575.0,61574.0,0.85080482]
[1728043316471,0.28571031,61575.0,61574.0,0.86480482]
[1728043316755,0.28571031,61575.0,61574.0,0.88904227]
[1728043316896,0.28571031,61575.0,61574.0,0.90304227]
[1728043317100,0.28571031,61575.0,61574.0,0.9029841]
[1728043317716,0.28571031,61575.0,61574.0,0.83035235]
[1728043318010,0.28571031,61575.0,61574.0,0.90295052]
[1728043318752,0.28571031,61575.0,61574.0,0.90795052]
[1728043319150,0.28571031,61575.0,61574.0,0.86595052]
[1728043319651,0.28571031,61575.0,61574.0,0.89395052]
[1728043319887,0.25322931,61575.0,61574.0,0.91816111]
[1728043320343,0.25322931,61575.0,61574.0,0.91811702]
[1728043320806,0.25322931,61575.0,61574.0,0.90411702]
[1728043321027,0.09082431,61575.0,61574.0,0.86595626]
[1728043321269,0.09082431,61575.0,61574.0,0.82135732]
[1728043321500,0.09082431,61575.0,61574.0,0.85894732]
[1728043321712,0.09082431,61575.0,61574.0,0.93831776]
[1728043321971,3.1e-07,61579.0,61578.0,0.002]
[1728043322200,8.8e-07,61581.0,61580.0,0.26939]
[1728043322423,8.8e-07,61581.0,61580.0,0.63075791]
[1728043322653,8.8e-07,61581.0,61580.0,0.63619912]
[1728043323564,8.8e-07,61581.0,61580.0,0.65019912]
[1728043323789,8.8e-07,61581.0,61580.0,0.70454751]
[1728043323998,8.8e-07,61581.0,61580.0,0.65019912]
[1728043324222,0.000819,61587.0,61586.0,0.002]
[1728043324473,0.324565,61621.0,61592.0,0.267358]
[1728043324474,0.24343338,61597.0,61592.0,0.267358]
[1728043324689,0.23850696,61597.0,61596.0,0.39317217]
[1728043324897,0.0002,61599.0,61598.0,0.269342]
[1728043325110,0.0002,61599.0,61598.0,0.52790991]
[1728043325329,0.0002,61599.0,61598.0,0.65710041]
[1728043326439,0.0002,61599.0,61598.0,0.66135168]
[1728043326645,0.0002,61599.0,61598.0,0.67535168]